[Event "Titled Tuesday Blitz March 21 Late 2023"]
[White "Balla, Tamas-Kristof"]
[Black "Leschinsky, Gary"]
[WhiteFideId "1208497"]
[BlackFideId "30951321"]
[WhiteElo "2334"]
[BlackElo "1855"]
[Result "1-0"]
[Round "04"]
[TimeControl "180+2"]
[Date "2023.03.21"]
[WhiteClock "0:00:05"]
[BlackClock "0:00:15"]

1. e4 {[%clk 0:03:00]}  c5 {[%clk 0:02:59]} 2. Nf3 {[%clk 0:03:00]}  d6 {[%clk 0:02:58]} 3. d4 {[%clk 0:03:00]}  cxd4 {[%clk 0:02:59]} 4. Qxd4 {[%clk 0:03:01]}  Nf6 {[%clk 0:03:00]} 5. c4 {[%clk 0:02:59]}  Nc6 {[%clk 0:03:00]} 6. Qe3 {[%clk 0:02:59]}  g6 {[%clk 0:02:59]} 7. Nc3 {[%clk 0:02:59]}  Bg7 {[%clk 0:02:59]} 8. Be2 {[%clk 0:02:59]}  O-O {[%clk 0:03:00]} 9. O-O {[%clk 0:02:59]}  Ng4 {[%clk 0:03:00]} 10. Qd2 {[%clk 0:02:53]}  b6 {[%clk 0:02:59]} 11. b3 {[%clk 0:02:47]}  Bb7 {[%clk 0:02:56]} 12. Bb2 {[%clk 0:02:47]}  Rc8 {[%clk 0:02:53]} 13. Nd5 {[%clk 0:02:17]}  Bxb2 {[%clk 0:02:39]} 14. Qxb2 {[%clk 0:02:18]}  e6 {[%clk 0:02:40]} 15. Nc3 {[%clk 0:02:10]}  a6 {[%clk 0:02:34]} 16. Rfd1 {[%clk 0:01:56]}  Qc7 {[%clk 0:02:30]} 17. h3 {[%clk 0:01:55]}  Nge5 {[%clk 0:02:17]} 18. Rac1 {[%clk 0:01:54]}  Rfd8 {[%clk 0:02:00]} 19. Nd5 {[%clk 0:01:46]}  Nxf3+ {[%clk 0:01:50]} 20. Bxf3 {[%clk 0:01:44]}  exd5 {[%clk 0:01:51]} 21. cxd5 {[%clk 0:01:43]}  Qe7 {[%clk 0:01:47]} 22. dxc6 {[%clk 0:01:42]}  Bxc6 {[%clk 0:01:48]} 23. Qd4 {[%clk 0:01:34]}  b5 {[%clk 0:01:43]} 24. Rxc6 {[%clk 0:01:24]}  Rxc6 {[%clk 0:01:29]} 25. e5 {[%clk 0:01:24]}  Rcc8 {[%clk 0:01:23]} 26. exd6 {[%clk 0:01:24]}  Qg5 {[%clk 0:01:20]} 27. Bg4 {[%clk 0:01:06]}  Rc2 {[%clk 0:01:11]} 28. d7 {[%clk 0:00:58]}  Qc5 {[%clk 0:01:10]} 29. Qf6 {[%clk 0:00:52]}  Qc7 {[%clk 0:01:06]} 30. Qg5 {[%clk 0:00:34]}  Rc5 {[%clk 0:01:03]} 31. Qh6 {[%clk 0:00:28]}  f5 {[%clk 0:00:54]} 32. Bf3 {[%clk 0:00:28]}  Rxd7 {[%clk 0:00:53]} 33. Re1 {[%clk 0:00:26]}  Re5 {[%clk 0:00:48]} 34. Rc1 {[%clk 0:00:23]}  Rc5 {[%clk 0:00:38]} 35. Re1 {[%clk 0:00:21]}  Re7 {[%clk 0:00:39]} 36. Rd1 {[%clk 0:00:17]}  Rg7 {[%clk 0:00:34]} 37. Bd5+ {[%clk 0:00:15]}  Kh8 {[%clk 0:00:33]} 38. Qg5 {[%clk 0:00:12]}  Qe7 {[%clk 0:00:29]} 39. Qf4 {[%clk 0:00:10]}  Rc8 {[%clk 0:00:22]} 40. Bf3 {[%clk 0:00:08]}  Rd8 {[%clk 0:00:21]} 41. Rc1 {[%clk 0:00:07]}  Qd6 {[%clk 0:00:21]} 42. Qg5 {[%clk 0:00:04]}  Qe7 {[%clk 0:00:20]} 43. Qf4 {[%clk 0:00:04]}  Rgg8 {[%clk 0:00:20]} 44. Qg3 {[%clk 0:00:03]}  Qf6 {[%clk 0:00:20]} 45. Qf4 {[%clk 0:00:03]}  Rge8 {[%clk 0:00:19]} 46. Rf1 {[%clk 0:00:03]}  Re7 {[%clk 0:00:20]} 47. Qb4 {[%clk 0:00:04]}  Rd4 {[%clk 0:00:19]} 48. Qa5 {[%clk 0:00:04]}  Red7 {[%clk 0:00:18]} 49. Qa3 {[%clk 0:00:03]}  Kg7 {[%clk 0:00:18]} 50. Qa5 {[%clk 0:00:03]}  Qd6 {[%clk 0:00:18]} 51. Qc3 {[%clk 0:00:03]}  Rc7 {[%clk 0:00:18]} 52. Qe3 {[%clk 0:00:04]}  Qf4 {[%clk 0:00:17]} 53. Qe1 {[%clk 0:00:03]}  Rdd7 {[%clk 0:00:15]} 54. Qa5 {[%clk 0:00:04]}  Qd4 {[%clk 0:00:15]} 55. Qxa6 {[%clk 0:00:04]}  Qc5 {[%clk 0:00:15]} 56. Qa5 {[%clk 0:00:03]}  Re7 {[%clk 0:00:15]} 57. Qa8 {[%clk 0:00:03]}  b4 {[%clk 0:00:15]} 58. Qd8 {[%clk 0:00:03]}  Ra7 {[%clk 0:00:15]} 59. Qd3 {[%clk 0:00:04]}  Rxa2 {[%clk 0:00:15]} 60. Rd1 {[%clk 0:00:03]}  Raa7 {[%clk 0:00:16]} 61. Qd8 {[%clk 0:00:03]}  Rad7 {[%clk 0:00:16]} 62. Rxd7 {[%clk 0:00:03]}  Qc1+ {[%clk 0:00:15]} 63. Kh2 {[%clk 0:00:04]}  Qf4+ {[%clk 0:00:15]} 64. g3 {[%clk 0:00:04]}  Rxd7 {[%clk 0:00:15]} 65. Qxd7+ {[%clk 0:00:05]} 1-0


[Site "https://www.chess.com"]

[Event "Titled Tuesday Blitz March 21 Late 2023"]
[White "Baches Garcia, Guillermo"]
[Black "mestrefeitosa19"]
[WhiteFideId "2209764"]
[WhiteElo "2427"]
[BlackElo "2234"]
[Result "1-0"]
[Round "04"]
[TimeControl "180+2"]
[Date "2023.03.21"]
[WhiteClock "0:01:55"]
[BlackClock "0:02:07"]

1. Nc3 {[%clk 0:03:00]}  d5 {[%clk 0:02:58]} 2. d4 {[%clk 0:03:00]}  Nf6 {[%clk 0:02:57]} 3. Bf4 {[%clk 0:03:01]}  e6 {[%clk 0:02:58]} 4. e3 {[%clk 0:03:00]}  Be7 {[%clk 0:02:59]} 5. Nb5 {[%clk 0:02:59]}  O-O {[%clk 0:03:00]} 6. Nxc7 {[%clk 0:02:56]}  Nc6 {[%clk 0:02:54]} 7. Nxa8 {[%clk 0:02:55]}  Bd7 {[%clk 0:02:54]} 8. Nc7 {[%clk 0:02:49]}  a6 {[%clk 0:02:40]} 9. c3 {[%clk 0:02:43]}  g6 {[%clk 0:02:35]} 10. Qb3 {[%clk 0:02:35]}  Bc8 {[%clk 0:02:30]} 11. Na8 {[%clk 0:02:21]}  b5 {[%clk 0:02:26]} 12. Nc7 {[%clk 0:02:02]}  Nh5 {[%clk 0:02:09]} 13. Bh6 {[%clk 0:01:56]}  Re8 {[%clk 0:02:07]} 14. Nxe8 {[%clk 0:01:55]} 1-0


[Site "https://www.chess.com"]

[Event "Titled Tuesday Blitz March 21 Late 2023"]
[White "Rose, Felix"]
[Black "Beulen, Marcel"]
[WhiteFideId "5105722"]
[BlackFideId "1001450"]
[WhiteElo "2039"]
[BlackElo "2403"]
[Result "1/2-1/2"]
[Round "04"]
[TimeControl "180+2"]
[Date "2023.03.21"]
[WhiteClock "0:00:14"]
[BlackClock "0:00:04"]

1. e4 {[%clk 0:03:00]}  d5 {[%clk 0:02:59]} 2. exd5 {[%clk 0:02:59]}  Qxd5 {[%clk 0:03:00]} 3. Nc3 {[%clk 0:03:00]}  Qa5 {[%clk 0:03:00]} 4. d4 {[%clk 0:03:00]}  Nf6 {[%clk 0:03:00]} 5. Bd2 {[%clk 0:02:59]}  Bg4 {[%clk 0:02:59]} 6. Nf3 {[%clk 0:02:55]}  c6 {[%clk 0:02:49]} 7. Bc4 {[%clk 0:02:54]}  e6 {[%clk 0:02:48]} 8. h3 {[%clk 0:02:48]}  Bxf3 {[%clk 0:02:47]} 9. Qxf3 {[%clk 0:02:47]}  Nbd7 {[%clk 0:02:44]} 10. Qg3 {[%clk 0:02:42]}  Qb6 {[%clk 0:02:33]} 11. O-O-O {[%clk 0:02:39]}  O-O-O {[%clk 0:02:33]} 12. Be3 {[%clk 0:02:36]}  Qa5 {[%clk 0:02:22]} 13. f3 {[%clk 0:02:23]}  g6 {[%clk 0:02:01]} 14. Kb1 {[%clk 0:02:19]}  Nb6 {[%clk 0:01:55]} 15. Bb3 {[%clk 0:02:18]}  Be7 {[%clk 0:01:47]} 16. Ne4 {[%clk 0:02:13]}  Nbd5 {[%clk 0:01:40]} 17. Bd2 {[%clk 0:02:10]}  Qc7 {[%clk 0:01:39]} 18. Qxc7+ {[%clk 0:02:07]}  Kxc7 {[%clk 0:01:36]} 19. c4 {[%clk 0:02:06]}  Nb6 {[%clk 0:01:28]} 20. Bc3 {[%clk 0:02:05]}  Rhe8 {[%clk 0:01:18]} 21. d5 {[%clk 0:01:44]}  Nxe4 {[%clk 0:01:17]} 22. fxe4 {[%clk 0:01:43]}  exd5 {[%clk 0:01:17]} 23. cxd5 {[%clk 0:01:43]}  cxd5 {[%clk 0:01:16]} 24. exd5 {[%clk 0:01:38]}  Bd6 {[%clk 0:01:13]} 25. g4 {[%clk 0:01:33]}  Re2 {[%clk 0:01:10]} 26. Rhf1 {[%clk 0:01:30]}  Rd7 {[%clk 0:01:09]} 27. a4 {[%clk 0:01:26]}  Be5 {[%clk 0:01:00]} 28. d6+ {[%clk 0:00:52]}  Bxd6 {[%clk 0:00:55]} 29. a5 {[%clk 0:00:47]}  Nc8 {[%clk 0:00:52]} 30. Bxf7 {[%clk 0:00:45]}  Be5 {[%clk 0:00:44]} 31. Bc4 {[%clk 0:00:42]}  Rxd1+ {[%clk 0:00:37]} 32. Rxd1 {[%clk 0:00:42]}  Re3 {[%clk 0:00:38]} 33. Bb4 {[%clk 0:00:22]}  Nd6 {[%clk 0:00:35]} 34. Bxd6+ {[%clk 0:00:14]}  Bxd6 {[%clk 0:00:34]} 35. Rd3 {[%clk 0:00:15]}  Re4 {[%clk 0:00:16]} 36. b3 {[%clk 0:00:14]}  g5 {[%clk 0:00:15]} 37. a6 {[%clk 0:00:14]}  bxa6 {[%clk 0:00:14]} 38. Bxa6 {[%clk 0:00:14]}  h6 {[%clk 0:00:14]} 39. Bc4 {[%clk 0:00:14]}  Re5 {[%clk 0:00:10]} 40. Kc2 {[%clk 0:00:14]}  Bc5 {[%clk 0:00:09]} 41. Rd2 {[%clk 0:00:14]}  Re3 {[%clk 0:00:08]} 42. Rd3 {[%clk 0:00:14]}  Rxd3 {[%clk 0:00:09]} 43. Kxd3 {[%clk 0:00:14]}  Kd6 {[%clk 0:00:09]} 44. Ke4 {[%clk 0:00:14]}  Be3 {[%clk 0:00:06]} 45. Kf5 {[%clk 0:00:14]}  a5 {[%clk 0:00:04]} 46. Kg6 {[%clk 0:00:15]}  Ke7 {[%clk 0:00:04]} 47. Kxh6 {[%clk 0:00:15]}  Kf6 {[%clk 0:00:04]} 48. Kh5 {[%clk 0:00:14]}  Bd2 {[%clk 0:00:05]} 49. Kh6 {[%clk 0:00:14]}  Be3 {[%clk 0:00:04]} 50. Kh7 {[%clk 0:00:14]}  Bd2 {[%clk 0:00:05]} 51. Kg8 {[%clk 0:00:15]}  Bb4 {[%clk 0:00:05]} 52. Kh7 {[%clk 0:00:14]}  Bd2 {[%clk 0:00:04]} 53. Kh6 {[%clk 0:00:14]}  Be3 {[%clk 0:00:04]} 1/2-1/2


[Site "https://www.chess.com"]

[Event "Titled Tuesday Blitz March 21 Late 2023"]
[White "Cella, Glaucio Dalla Cortt"]
[Black "monkins"]
[WhiteFideId "2119455"]
[WhiteElo "2011"]
[BlackElo "2244"]
[Result "0-1"]
[Round "04"]
[TimeControl "180+2"]
[Date "2023.03.21"]
[WhiteClock "0:00:03"]
[BlackClock "0:00:13"]

1. e4 {[%clk 0:01:12]}  c5 {[%clk 0:02:58]} 2. Nf3 {[%clk 0:01:11]}  g6 {[%clk 0:02:58]} 3. c3 {[%clk 0:01:11]}  d5 {[%clk 0:02:58]} 4. e5 {[%clk 0:01:11]}  Nc6 {[%clk 0:02:54]} 5. d4 {[%clk 0:01:12]}  Bg4 {[%clk 0:02:54]} 6. Bb5 {[%clk 0:01:08]}  Bxf3 {[%clk 0:02:54]} 7. gxf3 {[%clk 0:01:02]}  cxd4 {[%clk 0:02:51]} 8. cxd4 {[%clk 0:00:59]}  Qb6 {[%clk 0:02:48]} 9. Nc3 {[%clk 0:00:44]}  e6 {[%clk 0:02:47]} 10. Bg5 {[%clk 0:00:44]}  Be7 {[%clk 0:02:43]} 11. Bxe7 {[%clk 0:00:43]}  Nxe7 {[%clk 0:02:42]} 12. O-O {[%clk 0:00:44]}  Nf5 {[%clk 0:02:38]} 13. Bxc6+ {[%clk 0:00:44]}  bxc6 {[%clk 0:02:36]} 14. Ne2 {[%clk 0:00:36]}  Qxb2 {[%clk 0:02:29]} 15. Qd3 {[%clk 0:00:37]}  Qb5 {[%clk 0:02:20]} 16. Qxb5 {[%clk 0:00:37]}  cxb5 {[%clk 0:02:20]} 17. Rfb1 {[%clk 0:00:35]}  Rb8 {[%clk 0:02:09]} 18. Rb3 {[%clk 0:00:36]}  Kd7 {[%clk 0:01:25]} 19. Rab1 {[%clk 0:00:36]}  a6 {[%clk 0:01:22]} 20. a4 {[%clk 0:00:28]}  Rhc8 {[%clk 0:01:10]} 21. axb5 {[%clk 0:00:28]}  Rxb5 {[%clk 0:01:11]} 22. Rxb5 {[%clk 0:00:28]}  axb5 {[%clk 0:01:11]} 23. Rxb5 {[%clk 0:00:28]}  Rc4 {[%clk 0:01:11]} 24. Rb7+ {[%clk 0:00:22]}  Ke8 {[%clk 0:01:11]} 25. Rb8+ {[%clk 0:00:21]}  Ke7 {[%clk 0:01:11]} 26. Rb7+ {[%clk 0:00:20]}  Kf8 {[%clk 0:01:11]} 27. Kg2 {[%clk 0:00:15]}  h5 {[%clk 0:01:08]} 28. Rb8+ {[%clk 0:00:13]}  Kg7 {[%clk 0:01:07]} 29. Rb7 {[%clk 0:00:14]}  g5 {[%clk 0:00:56]} 30. f4 {[%clk 0:00:13]}  g4 {[%clk 0:00:51]} 31. h3 {[%clk 0:00:13]}  Rc2 {[%clk 0:00:39]} 32. Ng3 {[%clk 0:00:12]}  Ne3+ {[%clk 0:00:22]} 33. Kg1 {[%clk 0:00:06]}  gxh3 {[%clk 0:00:17]} 34. Nxh5+ {[%clk 0:00:06]}  Kg6 {[%clk 0:00:17]} 35. Ng3 {[%clk 0:00:07]}  Ng4 {[%clk 0:00:13]} 36. f5+ {[%clk 0:00:07]}  Kg5 {[%clk 0:00:12]} 37. fxe6 {[%clk 0:00:07]}  Rc1+ {[%clk 0:00:12]} 38. Nf1 {[%clk 0:00:05]}  h2+ {[%clk 0:00:12]} 39. Kg2 {[%clk 0:00:06]}  Rxf1 {[%clk 0:00:12]} 40. Kf3 {[%clk 0:00:01]}  h1=Q+ {[%clk 0:00:12]} 41. Ke2 {[%clk 0:00:02]}  Rxf2+ {[%clk 0:00:12]} 42. Kd3 {[%clk 0:00:01]}  Qd1+ {[%clk 0:00:12]} 43. Kc3 {[%clk 0:00:02]}  Rc2+ {[%clk 0:00:12]} 44. Kb4 {[%clk 0:00:03]}  Qb1+ {[%clk 0:00:12]} 45. Ka5 {[%clk 0:00:03]}  Ra2# {[%clk 0:00:13]} 0-1


[Site "https://www.chess.com"]

[Event "Titled Tuesday Blitz March 21 Late 2023"]
[White "Albuquerque Junior,Wellington S."]
[Black "Vaglio Munoz, Jaime"]
[WhiteFideId "2151480"]
[BlackFideId "6500145"]
[WhiteElo "2109"]
[BlackElo "2199"]
[Result "1-0"]
[Round "04"]
[TimeControl "180+2"]
[Date "2023.03.21"]
[WhiteClock "0:00:14"]
[BlackClock "0:00:05"]

1. c4 {[%clk 0:03:00]}  c6 {[%clk 0:02:59]} 2. Nf3 {[%clk 0:03:00]}  b5 {[%clk 0:02:59]} 3. b3 {[%clk 0:02:35]}  d5 {[%clk 0:02:55]} 4. g3 {[%clk 0:02:29]}  Bf5 {[%clk 0:02:46]} 5. Bg2 {[%clk 0:02:20]}  e6 {[%clk 0:02:46]} 6. O-O {[%clk 0:02:20]}  Qf6 {[%clk 0:02:42]} 7. d4 {[%clk 0:02:12]}  h6 {[%clk 0:02:37]} 8. Nc3 {[%clk 0:01:54]}  b4 {[%clk 0:02:36]} 9. Na4 {[%clk 0:01:53]}  Nd7 {[%clk 0:02:34]} 10. Bb2 {[%clk 0:01:46]}  g5 {[%clk 0:02:33]} 11. Ne5 {[%clk 0:01:44]}  Nxe5 {[%clk 0:02:27]} 12. dxe5 {[%clk 0:01:45]}  Qg6 {[%clk 0:02:26]} 13. Rc1 {[%clk 0:01:20]}  Ne7 {[%clk 0:02:11]} 14. cxd5 {[%clk 0:01:15]}  exd5 {[%clk 0:02:07]} 15. Qd4 {[%clk 0:00:40]}  a5 {[%clk 0:01:38]} 16. a3 {[%clk 0:00:28]}  bxa3 {[%clk 0:01:09]} 17. Bxa3 {[%clk 0:00:29]}  Be6 {[%clk 0:01:08]} 18. Bb2 {[%clk 0:00:24]}  Bg7 {[%clk 0:01:04]} 19. Qc5 {[%clk 0:00:22]}  Bg4 {[%clk 0:00:38]} 20. Rfe1 {[%clk 0:00:21]}  Qe6 {[%clk 0:00:34]} 21. e4 {[%clk 0:00:20]}  d4 {[%clk 0:00:23]} 22. Qxd4 {[%clk 0:00:17]}  O-O {[%clk 0:00:23]} 23. Qd6 {[%clk 0:00:18]}  Rfd8 {[%clk 0:00:20]} 24. Qxe6 {[%clk 0:00:18]}  Bxe6 {[%clk 0:00:20]} 25. Nc5 {[%clk 0:00:18]}  Rd2 {[%clk 0:00:18]} 26. Bc3 {[%clk 0:00:18]}  Rdd8 {[%clk 0:00:16]} 27. f4 {[%clk 0:00:19]}  gxf4 {[%clk 0:00:15]} 28. gxf4 {[%clk 0:00:19]}  Bg4 {[%clk 0:00:16]} 29. h3 {[%clk 0:00:19]}  Bc8 {[%clk 0:00:13]} 30. f5 {[%clk 0:00:19]}  f6 {[%clk 0:00:13]} 31. e6 {[%clk 0:00:19]}  Bf8 {[%clk 0:00:11]} 32. Bxf6 {[%clk 0:00:17]}  Re8 {[%clk 0:00:11]} 33. Nd3 {[%clk 0:00:16]}  Ba6 {[%clk 0:00:08]} 34. Ne5 {[%clk 0:00:17]}  Bb5 {[%clk 0:00:07]} 35. Rc3 {[%clk 0:00:17]}  a4 {[%clk 0:00:07]} 36. Rg3+ {[%clk 0:00:17]}  Kh7 {[%clk 0:00:06]} 37. bxa4 {[%clk 0:00:16]}  Rxa4 {[%clk 0:00:05]} 38. Nd7 {[%clk 0:00:14]} 1-0


[Site "https://www.chess.com"]

[Event "Titled Tuesday Blitz March 21 Late 2023"]
[White "Fernandez Hernandez, Gerardo"]
[Black "reevecanada"]
[WhiteFideId "2207400"]
[WhiteElo "2219"]
[BlackElo "2456"]
[Result "0-1"]
[Round "04"]
[TimeControl "180+2"]
[Date "2023.03.21"]
[WhiteClock "0:00:01"]
[BlackClock "0:00:59"]

1. e4 {[%clk 0:03:00]}  c5 {[%clk 0:02:59]} 2. d3 {[%clk 0:03:00]}  d6 {[%clk 0:02:59]} 3. g3 {[%clk 0:03:01]}  h5 {[%clk 0:02:58]} 4. h3 {[%clk 0:02:55]}  h4 {[%clk 0:02:58]} 5. g4 {[%clk 0:02:55]}  e5 {[%clk 0:02:57]} 6. Bg2 {[%clk 0:02:48]}  Ne7 {[%clk 0:02:51]} 7. Ne2 {[%clk 0:02:43]}  f6 {[%clk 0:02:50]} 8. O-O {[%clk 0:02:34]}  g5 {[%clk 0:02:48]} 9. c3 {[%clk 0:02:27]}  Ng6 {[%clk 0:02:46]} 10. d4 {[%clk 0:02:27]}  Be7 {[%clk 0:02:45]} 11. dxc5 {[%clk 0:02:08]}  dxc5 {[%clk 0:02:35]} 12. Qxd8+ {[%clk 0:02:09]}  Bxd8 {[%clk 0:02:34]} 13. Be3 {[%clk 0:02:06]}  b6 {[%clk 0:02:32]} 14. Rd1 {[%clk 0:01:59]}  Be6 {[%clk 0:02:29]} 15. Nd2 {[%clk 0:01:42]}  Bc7 {[%clk 0:02:19]} 16. f3 {[%clk 0:01:31]}  Nc6 {[%clk 0:02:16]} 17. Bf1 {[%clk 0:01:28]}  Ke7 {[%clk 0:02:13]} 18. Nc1 {[%clk 0:01:25]}  Nf4 {[%clk 0:02:10]} 19. Bxf4 {[%clk 0:01:18]}  exf4 {[%clk 0:02:11]} 20. Bc4 {[%clk 0:01:03]}  Ne5 {[%clk 0:02:05]} 21. Bxe6 {[%clk 0:01:00]}  Kxe6 {[%clk 0:02:01]} 22. Kf2 {[%clk 0:00:52]}  Rhd8 {[%clk 0:01:57]} 23. Ke2 {[%clk 0:00:52]}  b5 {[%clk 0:01:56]} 24. Ncb3 {[%clk 0:00:42]}  Bb6 {[%clk 0:01:50]} 25. Nf1 {[%clk 0:00:26]}  a5 {[%clk 0:01:44]} 26. a4 {[%clk 0:00:07]}  Rxd1 {[%clk 0:01:36]} 27. Rxd1 {[%clk 0:00:05]}  bxa4 {[%clk 0:01:35]} 28. Nbd2 {[%clk 0:00:05]}  Rd8 {[%clk 0:01:19]} 29. Nh2 {[%clk 0:00:03]}  c4 {[%clk 0:01:12]} 30. Ra1 {[%clk 0:00:01]}  Be3 {[%clk 0:01:02]} 31. Ndf1 {[%clk 0:00:01]}  Rb8 {[%clk 0:01:01]} 32. Nxe3 {[%clk 0:00:01]}  Rxb2+ {[%clk 0:00:59]} 33. Kf1 {[%clk 0:00:01]}  fxe3 {[%clk 0:00:59]} 34. Kg1 {[%clk 0:00:01]}  Nd3 {[%clk 0:00:59]} 0-1


[Site "https://www.chess.com"]

[Event "Titled Tuesday Blitz March 21 Late 2023"]
[White "Dylag, Emilia"]
[Black "Cyfka, Karina"]
[WhiteFideId "21805172"]
[BlackFideId "1122681"]
[WhiteElo "1878"]
[BlackElo "2241"]
[Result "0-1"]
[Round "04"]
[TimeControl "180+2"]
[Date "2023.03.21"]
[WhiteClock "0:01:40"]
[BlackClock "0:01:20"]

1. b3 {[%clk 0:02:58]}  e5 {[%clk 0:02:59]} 2. Bb2 {[%clk 0:02:51]}  Nc6 {[%clk 0:02:59]} 3. e3 {[%clk 0:02:46]}  Nf6 {[%clk 0:02:54]} 4. d4 {[%clk 0:02:46]}  exd4 {[%clk 0:02:51]} 5. exd4 {[%clk 0:02:45]}  d5 {[%clk 0:02:51]} 6. Nf3 {[%clk 0:02:45]}  Bd6 {[%clk 0:02:50]} 7. Be2 {[%clk 0:02:42]}  O-O {[%clk 0:02:50]} 8. O-O {[%clk 0:02:43]}  Bf5 {[%clk 0:02:46]} 9. Nbd2 {[%clk 0:02:41]}  Ne7 {[%clk 0:02:35]} 10. Ne5 {[%clk 0:02:40]}  Ng6 {[%clk 0:02:32]} 11. c4 {[%clk 0:02:34]}  Nf4 {[%clk 0:02:22]} 12. c5 {[%clk 0:02:23]}  Bxe5 {[%clk 0:02:15]} 13. dxe5 {[%clk 0:02:24]}  Nd7 {[%clk 0:02:06]} 14. Bg4 {[%clk 0:02:10]}  Qg5 {[%clk 0:01:57]} 15. Bf3 {[%clk 0:01:50]}  Bd3 {[%clk 0:01:52]} 16. Re1 {[%clk 0:01:48]}  Nh3+ {[%clk 0:01:52]} 17. Kh1 {[%clk 0:01:42]}  Nxf2+ {[%clk 0:01:51]} 18. Kg1 {[%clk 0:01:43]}  Nxd1 {[%clk 0:01:50]} 19. Raxd1 {[%clk 0:01:44]}  Nxc5 {[%clk 0:01:42]} 20. Bxd5 {[%clk 0:01:43]}  Rad8 {[%clk 0:01:37]} 21. Nf3 {[%clk 0:01:42]}  Qg4 {[%clk 0:01:24]} 22. h3 {[%clk 0:01:40]}  Qg3 {[%clk 0:01:20]} 0-1


[Site "https://www.chess.com"]

[Event "Titled Tuesday Blitz March 21 Late 2023"]
[White "Tymrakiewicz, Rafal"]
[Black "Ardila, Oscar Humberto"]
[WhiteFideId "1108832"]
[BlackFideId "4404742"]
[WhiteElo "2151"]
[BlackElo "1911"]
[Result "0-1"]
[Round "04"]
[TimeControl "180+2"]
[Date "2023.03.21"]
[WhiteClock "0:00:10"]
[BlackClock "0:00:15"]

1. e4 {[%clk 0:02:55]}  e5 {[%clk 0:03:00]} 2. Nf3 {[%clk 0:02:53]}  Nf6 {[%clk 0:03:00]} 3. d4 {[%clk 0:02:54]}  Nxe4 {[%clk 0:02:58]} 4. dxe5 {[%clk 0:02:31]}  d5 {[%clk 0:02:57]} 5. h3 {[%clk 0:02:20]}  Bc5 {[%clk 0:02:55]} 6. Nd4 {[%clk 0:02:19]}  Nc6 {[%clk 0:02:54]} 7. Be3 {[%clk 0:02:14]}  O-O {[%clk 0:02:48]} 8. Nxc6 {[%clk 0:02:11]}  bxc6 {[%clk 0:02:43]} 9. Bxc5 {[%clk 0:02:11]}  Nxc5 {[%clk 0:02:43]} 10. Nd2 {[%clk 0:02:03]}  Rb8 {[%clk 0:02:40]} 11. Nf3 {[%clk 0:02:00]}  Ne4 {[%clk 0:02:34]} 12. Bd3 {[%clk 0:01:53]}  f5 {[%clk 0:02:34]} 13. O-O {[%clk 0:01:50]}  Rxb2 {[%clk 0:02:26]} 14. Qc1 {[%clk 0:01:44]}  Rb6 {[%clk 0:02:25]} 15. Qa3 {[%clk 0:01:43]}  a6 {[%clk 0:02:21]} 16. Rab1 {[%clk 0:01:40]}  c5 {[%clk 0:01:17]} 17. c4 {[%clk 0:01:38]}  d4 {[%clk 0:01:12]} 18. Rb3 {[%clk 0:01:36]}  Be6 {[%clk 0:01:01]} 19. Rfb1 {[%clk 0:01:30]}  Qb8 {[%clk 0:01:01]} 20. Rxb6 {[%clk 0:01:03]}  cxb6 {[%clk 0:01:01]} 21. Qxa6 {[%clk 0:01:03]}  Qc7 {[%clk 0:00:51]} 22. Rxb6 {[%clk 0:00:55]}  Bc8 {[%clk 0:00:50]} 23. Qb5 {[%clk 0:00:41]}  Bd7 {[%clk 0:00:47]} 24. Qa6 {[%clk 0:00:39]}  Bc8 {[%clk 0:00:47]} 25. Qa5 {[%clk 0:00:38]}  h6 {[%clk 0:00:43]} 26. Rb5 {[%clk 0:00:36]}  Qe7 {[%clk 0:00:35]} 27. Qb6 {[%clk 0:00:21]}  Bd7 {[%clk 0:00:30]} 28. Ra5 {[%clk 0:00:20]}  Qd8 {[%clk 0:00:23]} 29. Qxd8 {[%clk 0:00:18]}  Rxd8 {[%clk 0:00:23]} 30. Ra7 {[%clk 0:00:19]}  Be6 {[%clk 0:00:22]} 31. Ra3 {[%clk 0:00:16]}  Rb8 {[%clk 0:00:21]} 32. Rb3 {[%clk 0:00:17]}  Ra8 {[%clk 0:00:21]} 33. a3 {[%clk 0:00:17]}  Kh7 {[%clk 0:00:18]} 34. h4 {[%clk 0:00:15]}  Bf7 {[%clk 0:00:18]} 35. g3 {[%clk 0:00:12]}  Bh5 {[%clk 0:00:17]} 36. Kg2 {[%clk 0:00:11]}  Bxf3+ {[%clk 0:00:16]} 37. Kf1 {[%clk 0:00:10]}  Nd2+ {[%clk 0:00:16]} 38. Kg1 {[%clk 0:00:09]}  Nxb3 {[%clk 0:00:16]} 39. Kh2 {[%clk 0:00:10]}  Be4 {[%clk 0:00:15]} 0-1


[Site "https://www.chess.com"]